[Event "22nd ETCC Women 2019"]
[Site "Batumi"]
[Date "2019.10.30"]
[Round "6.26"]
[White "Bejatovic, Bojana"]
[Black "Heinatz, Gundula"]
[Result "1-0"]
[ECO "B09"]
[WhiteElo "2004"]
[BlackElo "2175"]
[Annotator "NA"]
[PlyCount "61"]
[EventDate "2019.10.24"]
[EventType "team-tourn"]
[EventCountry "GEO"]
[SourceTitle "playchess.com"]
[Source "ChessBase"]
[SourceQuality "1"]
[WhiteTeam "Macedonia"]
[BlackTeam "Switzerland"]
[WhiteTeamCountry "MKD"]
[BlackTeamCountry "SUI"]
[TimeControl "40/5400+30:1800+30"]

1. e4 {[%emt 0:00:00]} d6 {[%emt 0:00:00]} 2. d4 {[%emt 0:00:00]} Nf6 {[%emt 0:00:00]} 3. Nc3 g6 4. f4 {[%emt 0:00:00]} Bg7 {[%emt 0:00:25]} 5. Nf3 O-O 6. Bd3 {[%emt 0:02:13]} Na6 7. Be3 Nb4 8. h3 Nxd3+ {[%emt 0:08:39]} 9. Qxd3 {[%emt 0:06:44]} d5 {[%emt 0:00:09]} 10. e5 {[%emt 0:08:01]} Ne4 {[%emt 0:15:20]} 11. g4 {[%emt 0:04:09]} Nxc3 {[%emt 0:09:18]} 12. Qxc3 {[%emt 0:03:04]} b6 {[%emt 0:01:08]} 13. O-O-O {[%emt 0:05:04]} c5 {[%emt 0:06:41]} 14. Qd2 {[%emt 0:05:34]} Qc7 {[%emt 0:08:59]} 15. Rdg1 {[%emt 0:05:17]} cxd4 {[%emt 0:06:13]} 16. Nxd4 {[%emt 0:04:09]} e6 {[%emt 0:05:13]} 17. h4 {[%emt 0:10:30]} Bd7 {[%emt 0:04:22]} 18. h5 {[%emt 0:02:32]} Rfc8 {[%emt 0:00:14]} 19. hxg6 {[%emt 0:07:01]} hxg6 {[%emt 0:00:18]} 20. Rg3 {[%emt 0:02:02]} Qc4 {[%emt 0:07:14]} 21. Kb1 {[%emt 0:03:15]} Kf8 {[%emt 0:02:22]} 22. Qh2 {[%emt 0:07:45]} Ke8 {[%emt 0:07:50]} 23. Qh7 {[%emt 0:04:03]} Bf8 {[%emt 0:00:07]} 24. Qg8 {[%emt 0:01:51]} Rc7 {[%emt 0:02:22]} 25. f5 {[%emt 0:02:37]} exf5 {[%emt 0:05:21]} 26. Bg5 {[%emt 0:04:51]} f6 {[%emt 0:03:56]} 27. Qxg6+ {[%emt 0:04:21]} Kd8 {[%emt 0:00:11]} 28. Qxf6+ {[%emt 0:00:21]} Kc8 {[%emt 0:02:16]} 29. Rc3 {[%emt 0:00:16]} Qxd4 {[%emt 0:00:36]} 30. Qd8+ {[%emt 0:01:23]} Kb7 {[%emt 0:00:04]} 31. Rxc7+ {[%emt 0:00:29]} 1-0

[Event "22nd ETCC Women 2019"]
[Site "Batumi"]
[Date "2019.10.30"]
[Round "6.27"]
[White "Skripchenko, Almira"]
[Black "Lahav, Michal"]
[Result "1/2-1/2"]
[ECO "C03"]
[WhiteElo "2403"]
[BlackElo "2221"]
[Annotator "NA"]
[PlyCount "125"]
[EventDate "2019.10.24"]
[EventType "team-tourn"]
[EventCountry "GEO"]
[SourceTitle "playchess.com"]
[Source "ChessBase"]
[SourceQuality "1"]
[WhiteTeam "France"]
[BlackTeam "Israel"]
[WhiteTeamCountry "FRA"]
[BlackTeamCountry "ISR"]
[TimeControl "40/5400+30:1800+30"]

1. e4 {[%emt 0:00:00]} e6 {[%emt 0:00:00]} 2. d4 {[%emt 0:00:00]} d5 {[%emt 0:00:00]} 3. Nd2 {[%emt 0:00:14]} Be7 {[%emt 0:00:00]} 4. e5 {[%emt 0:00:59]} c5 {[%emt 0:00:24]} 5. c3 {[%emt 0:00:06]} Nc6 {[%emt 0:14:24]} 6. Bd3 {[%emt 0:00:35]} cxd4 {[%emt 0:00:31]} 7. cxd4 {[%emt 0:00:06]} Nh6 {[%emt 0:00:08]} 8. Ndf3 {[%emt 0:00:59]} Nf5 {[%emt 0:00:45]} 9. Ne2 {[%emt 0:00:26]} Qb6 {[%emt 0:01:55]} 10. O-O {[%emt 0:00:42]} Bd7 {[%emt 0:00:08]} 11. Kh1 {[%emt 0:03:37]} Rc8 {[%emt 0:14:05]} 12. a3 {[%emt 0:28:07]} Na5 {[%emt 0:03:55]} 13. b4 {[%emt 0:12:58]} Nc4 {[%emt 0:00:48]} 14. Rb1 {[%emt 0:01:53]} Qc7 {[%emt 0:37:59]} 15. Nf4 {[%emt 0:05:42]} Nb6 {[%emt 0:03:16]} 16. b5 {[%emt 0:07:59]} Bf8 {[%emt 0:02:47]} 17. a4 {[%emt 0:05:36]} Ne7 {[%emt 0:02:06]} 18. Nh5 {[%emt 0:06:13]} Nc4 {[%emt 0:02:02]} 19. Nd2 {[%emt 0:02:00]} Qb6 {[%emt 0:05:30]} 20. Qg4 {[%emt 0:04:21]} Ng6 {[%emt 0:00:06]} 21. Nf3 {[%emt 0:02:01]} Kd8 {[%emt 0:01:41]} 22. Be3 {[%emt 0:02:53]} Nxe3 {[%emt 0:07:06]} 23. fxe3 {[%emt 0:00:06]} Be8 {[%emt 0:00:12]} 24. Ng5 {[%emt 0:02:40]} Rc3 {[%emt 0:00:35]} 25. Rbd1 {[%emt 0:01:30]} Qc7 {[%emt 0:00:51]} 26. e4 {[%emt 0:05:28]} h6 {[%emt 0:01:04]} 27. Nf3 {[%emt 0:01:31]} Ne7 {[%emt 0:00:02]} 28. exd5 {[%emt 0:00:25]} Nxd5 {[%emt 0:00:02]} 29. Rfe1 {[%emt 0:01:11]} g6 {[%emt 0:01:14]} 30. Nf4 {[%emt 0:00:22]} h5 {[%emt 0:00:47]} 31. Qg3 {[%emt 0:00:55]} Nb4 {[%emt 0:00:33]} 32. Be4 {[%emt 0:00:11]} Be7 {[%emt 0:00:20]} 33. d5 {[%emt 0:01:14]} exd5 {[%emt 0:00:07]} 34. Nxd5 {[%emt 0:00:56]} Nxd5 {[%emt 0:00:05]} 35. Bxd5 {[%emt 0:00:16]} Kc8 {[%emt 0:00:17]} 36. Qf4 {[%emt 0:00:20]} Ba3 {[%emt 0:01:34]} 37. Ng5 {[%emt 0:02:47]} Kb8 {[%emt 0:00:25]} 38. Qf6 {[%emt 0:01:00]} Rf8 {[%emt 0:00:18]} 39. Nh7 {[%emt 0:00:22]} Rg8 {[%emt 0:00:23]} 40. e6 {[%emt 0:00:00]} fxe6 41. Bxe6 {[%emt 0:04:13]} Be7 {[%emt 0:05:45]} 42. Qd4 {[%emt 0:01:11]} Bf7 {[%emt 0:05:00]} 43. Bxf7 {[%emt 0:01:12]} Rd8 {[%emt 0:00:15]} 44. Bd5 {[%emt 0:03:20]} Rc5 {[%emt 0:02:02]} 45. Qe4 {[%emt 0:00:13]} Rd7 {[%emt 0:01:42]} 46. Bb3 {[%emt 0:02:56]} Rxd1 {[%emt 0:05:40]} 47. Bxd1 {[%emt 0:01:39]} Rc1 {[%emt 0:01:05]} 48. Qxg6 {[%emt 0:00:22]} Qd8 {[%emt 0:02:21]} 49. Qxh5 {[%emt 0:01:30]} Qd2 {[%emt 0:00:38]} 50. Rf1 {[%emt 0:01:55]} Qd3 {[%emt 0:01:32]} 51. Rg1 {[%emt 0:02:36]} Bc5 {[%emt 0:01:07]} 52. Re1 {[%emt 0:05:40]} Bb4 {[%emt 0:01:25]} 53. Qe5+ {[%emt 0:02:28]} Bd6 {[%emt 0:00:09]} 54. Qe8+ {[%emt 0:00:21]} Kc7 {[%emt 0:00:13]} 55. Qf7+ {[%emt 0:03:51]} Kb6 {[%emt 0:00:08]} 56. Qf2+ {[%emt 0:01:41]} Kc7 {[%emt 0:04:48]} 57. Qf3 {[%emt 0:02:28]} Qxh7 {[%emt 0:00:10]} 58. g3 {[%emt 0:00:04]} Qg7 {[%emt 0:03:34]} 59. Rf1 {[%emt 0:01:05]} Qd4 {[%emt 0:01:03]} 60. Kg2 {[%emt 0:01:10]} Qd2+ {[%emt 0:00:34]} 61. Kh1 {[%emt 0:01:04]} Qd4 {[%emt 0:00:02]} 62. Qf7+ {[%emt 0:00:40]} Kb6 {[%emt 0:00:01]} 63. Qf3 {[%emt 0:00:08]} 1/2-1/2

[Event "22nd ETCC Women 2019"]
[Site "Batumi"]
[Date "2019.10.30"]
[Round "6.27"]
[White "De Seroux, Camille"]
[Black "Manova, Ivana"]
[Result "1-0"]
[ECO "C44"]
[WhiteElo "2140"]
[BlackElo "1795"]
[Annotator "NA"]
[PlyCount "49"]
[EventDate "2019.10.24"]
[EventType "team-tourn"]
[EventCountry "GEO"]
[SourceTitle "playchess.com"]
[Source "ChessBase"]
[SourceQuality "1"]
[WhiteTeam "Switzerland"]
[BlackTeam "Macedonia"]
[WhiteTeamCountry "SUI"]
[BlackTeamCountry "MKD"]
[TimeControl "40/5400+30:1800+30"]

1. e4 {[%emt 0:00:00]} e5 {[%emt 0:00:00]} 2. Nf3 {[%emt 0:00:00]} Nc6 {[%emt 0:00:00]} 3. c3 {[%emt 0:00:00]} Nf6 {[%emt 0:00:13]} 4. d4 {[%emt 0:00:00]} exd4 {[%emt 0:00:50]} 5. e5 {[%emt 0:00:24]} Nd5 {[%emt 0:01:34]} 6. cxd4 {[%emt 0:00:28]} Bb4+ {[%emt 0:05:14]} 7. Bd2 {[%emt 0:01:28]} Bxd2+ {[%emt 0:02:40]} 8. Nbxd2 {[%emt 0:01:40]} d6 {[%emt 0:02:47]} 9. Bb5 {[%emt 0:01:54]} O-O {[%emt 0:07:19]} 10. O-O {[%emt 0:02:17]} Bg4 {[%emt 0:10:19]} 11. Qb3 {[%emt 0:13:57]} Nce7 {[%emt 0:12:13]} 12. Rfe1 {[%emt 0:06:43]} c6 {[%emt 0:05:56]} 13. Bf1 {[%emt 0:01:51]} Bxf3 {[%emt 0:22:11]} 14. Nxf3 {[%emt 0:01:40]} dxe5 {[%emt 0:00:13]} 15. dxe5 {[%emt 0:02:38]} Qb6 16. Qc2 Ng6 {[%emt 0:06:42]} 17. a3 {[%emt 0:10:34]} Rad8 18. g3 Nc7 {[%emt 0:08:49]} 19. Bc4 {[%emt 0:14:17]} c5 {[%emt 0:10:01]} 20. Ng5 Rd4 21. e6 {[%emt 0:16:19]} fxe6 {[%emt 0:02:24]} 22. Nxe6 {[%emt 0:00:26]} Kh8 {[%emt 0:01:00]} 23. Nxf8 {[%emt 0:01:57]} Nxf8 24. Qf5 {[%emt 0:02:53]} Qd6 {[%emt 0:00:58]} 25. Qf7 1-0

[Event "22nd ETCC Women 2019"]
[Site "Batumi"]
[Date "2019.10.30"]
[Round "6.28"]
[White "Nesterovskaya, Anzhelika"]
[Black "Benmesbah, Natacha"]
[Result "0-1"]
[ECO "B21"]
[WhiteElo "2124"]
[BlackElo "2265"]
[Annotator "NA"]
[PlyCount "50"]
[EventDate "2019.10.24"]
[EventType "team-tourn"]
[EventCountry "GEO"]
[SourceTitle "playchess.com"]
[Source "ChessBase"]
[SourceQuality "1"]
[WhiteTeam "Israel"]
[BlackTeam "France"]
[WhiteTeamCountry "ISR"]
[BlackTeamCountry "FRA"]
[TimeControl "40/5400+30:1800+30"]

1. e4 {[%emt 0:00:00]} c5 {[%emt 0:00:04]} 2. f4 {[%emt 0:00:06]} d5 {[%emt 0:00:43]} 3. exd5 {[%emt 0:00:07]} Nf6 {[%emt 0:00:04]} 4. Bb5+ {[%emt 0:00:10]} Nbd7 {[%emt 0:00:20]} 5. c4 {[%emt 0:00:12]} a6 {[%emt 0:02:13]} 6. Bxd7+ {[%emt 0:00:23]} Bxd7 {[%emt 0:00:04]} 7. Nf3 {[%emt 0:00:44]} e6 {[%emt 0:03:12]} 8. dxe6 {[%emt 0:11:43]} Bxe6 {[%emt 0:00:05]} 9. d3 {[%emt 0:00:46]} Bd6 {[%emt 0:04:26]} 10. O-O {[%emt 0:01:03]} O-O {[%emt 0:00:06]} 11. Ng5 {[%emt 0:03:21]} Bf5 {[%emt 0:01:35]} 12. Nc3 {[%emt 0:02:26]} Re8 {[%emt 0:04:50]} 13. Qf3 {[%emt 0:01:05]} Bf8 {[%emt 0:01:47]} 14. Nge4 {[%emt 0:27:54]} Nxe4 {[%emt 0:15:32]} 15. dxe4 {[%emt 0:00:22]} Qd4+ {[%emt 0:00:46]} 16. Be3 {[%emt 0:01:47]} Bxe4 {[%emt 0:00:23]} 17. Bxd4 {[%emt 0:00:05]} Bxf3 {[%emt 0:00:03]} 18. Rxf3 {[%emt 0:00:50]} cxd4 {[%emt 0:00:05]} 19. Nd5 {[%emt 0:03:21]} Rac8 {[%emt 0:06:01]} 20. b3 {[%emt 0:00:24]} b5 {[%emt 0:01:40]} 21. a4 {[%emt 0:04:57]} bxc4 {[%emt 0:06:45]} 22. Nb6 {[%emt 0:04:32]} c3 {[%emt 0:00:06]} 23. Rd3 {[%emt 0:00:44]} c2 {[%emt 0:02:42]} 24. Nc4 {[%emt 0:04:05]} Rxc4 {[%emt 0:01:25]} 25. bxc4 {[%emt 0:00:07]} Rb8 {[%emt 0:00:03]} 0-1

[Event "22nd ETCC Women 2019"]
[Site "Batumi"]
[Date "2019.10.30"]
[Round "6.28"]
[White "Koskoska, Gabriela"]
[Black "Pellicoro, Nathalie"]
[Result "1-0"]
[ECO "B40"]
[WhiteElo "2036"]
[BlackElo "1967"]
[Annotator "NA"]
[PlyCount "161"]
[EventDate "2019.10.24"]
[EventType "team-tourn"]
[EventCountry "GEO"]
[SourceTitle "playchess.com"]
[Source "ChessBase"]
[SourceQuality "1"]
[WhiteTeam "Macedonia"]
[BlackTeam "Switzerland"]
[WhiteTeamCountry "MKD"]
[BlackTeamCountry "SUI"]
[TimeControl "40/5400+30:1800+30"]

1. e4 c5 {[%emt 0:00:27]} 2. Nf3 {[%emt 0:00:19]} e6 {[%emt 0:00:18]} 3. d3 {[%emt 0:01:00]} Nc6 {[%emt 0:02:04]} 4. g3 {[%emt 0:00:22]} Nf6 {[%emt 0:07:00]} 5. Bg2 {[%emt 0:00:23]} Be7 {[%emt 0:04:48]} 6. O-O {[%emt 0:01:03]} d6 {[%emt 0:01:12]} 7. c3 {[%emt 0:01:50]} e5 {[%emt 0:00:44]} 8. Re1 {[%emt 0:00:29]} O-O {[%emt 0:03:42]} 9. h3 {[%emt 0:11:50]} a6 {[%emt 0:12:17]} 10. Na3 {[%emt 0:06:00]} b5 {[%emt 0:01:51]} 11. Nc2 {[%emt 0:03:00]} Re8 {[%emt 0:01:13]} 12. Nh4 {[%emt 0:08:06]} g6 {[%emt 0:02:12]} 13. Bh6 {[%emt 0:14:15]} Bf8 {[%emt 0:01:42]} 14. Bxf8 {[%emt 0:05:21]} Kxf8 {[%emt 0:01:01]} 15. Ne3 {[%emt 0:04:51]} Kg7 {[%emt 0:03:17]} 16. Qd2 {[%emt 0:12:51]} Bd7 {[%emt 0:05:16]} 17. Kh2 {[%emt 0:02:08]} Rb8 {[%emt 0:04:38]} 18. a3 {[%emt 0:05:27]} Na5 {[%emt 0:03:30]} 19. Qd1 {[%emt 0:02:22]} Be6 {[%emt 0:03:28]} 20. Nd5 {[%emt 0:01:23]} Bxd5 {[%emt 0:11:45]} 21. exd5 {[%emt 0:00:02]} c4 {[%emt 0:02:14]} 22. Qe2 {[%emt 0:03:56]} Nb3 {[%emt 0:02:04]} 23. Rad1 {[%emt 0:00:10]} Qc7 {[%emt 0:01:20]} 24. Qe3 {[%emt 0:02:57]} h6 {[%emt 0:02:36]} 25. dxc4 {[%emt 0:02:21]} bxc4 26. g4 {[%emt 0:01:50]} Nd7 {[%emt 0:03:36]} 27. Bf1 {[%emt 0:01:37]} Rb5 {[%emt 0:03:45]} 28. f4 {[%emt 0:01:17]} Qc5 {[%emt 0:02:58]} 29. Qe2 {[%emt 0:01:43]} Na5 {[%emt 0:03:11]} 30. a4 {[%emt 0:01:03]} Rbb8 {[%emt 0:01:09]} 31. f5 g5 {[%emt 0:02:15]} 32. f6+ {[%emt 0:01:07]} Nxf6 {[%emt 0:00:02]} 33. Nf5+ Kh7 34. Bg2 {[%emt 0:00:25]} e4 {[%emt 0:07:17]} 35. Qc2 {[%emt 0:02:01]} Re5 {[%emt 0:00:30]} 36. Ng3 {[%emt 0:01:37]} Rbe8 37. Rf1 {[%emt 0:00:08]} Kg7 {[%emt 0:02:29]} 38. Nf5+ {[%emt 0:00:09]} Kg6 {[%emt 0:00:27]} 39. Ng3 {[%emt 0:00:00]} Nxd5 {[%emt 0:00:00]} 40. Bxe4+ {[%emt 0:00:00]} Kg7 {[%emt 0:00:00]} 41. Bxd5 {[%emt 0:08:53]} Rxd5 {[%emt 0:09:49]} 42. Nh5+ {[%emt 0:17:41]} Kf8 {[%emt 0:01:39]} 43. Qh7 {[%emt 0:02:11]} Re2+ {[%emt 0:01:05]} 44. Kh1 {[%emt 0:03:25]} Rf2 {[%emt 0:03:19]} 45. Rde1 {[%emt 0:01:23]} Re5 {[%emt 0:02:54]} 46. Qxh6+ {[%emt 0:00:42]} Ke8 {[%emt 0:00:40]} 47. Rxe5+ {[%emt 0:00:33]} dxe5 48. Qh8+ Ke7 {[%emt 0:03:04]} 49. Rxf2 {[%emt 0:01:01]} Qxf2 {[%emt 0:00:31]} 50. Qxe5+ {[%emt 0:00:06]} Kf8 {[%emt 0:00:53]} 51. Qd6+ {[%emt 0:01:01]} Kg8 52. Nf6+ {[%emt 0:01:03]} Kg7 {[%emt 0:01:57]} 53. Nh5+ {[%emt 0:00:50]} Kh7 54. Qf6 {[%emt 0:00:06]} Qe1+ {[%emt 0:05:17]} 55. Kg2 {[%emt 0:00:28]} Qe2+ {[%emt 0:00:56]} 56. Qf2 {[%emt 0:00:30]} Qe4+ {[%emt 0:00:08]} 57. Qf3 {[%emt 0:01:00]} Qc2+ 58. Kg3 {[%emt 0:00:30]} Qg6 {[%emt 0:04:25]} 59. Nf6+ {[%emt 0:00:35]} Kg7 {[%emt 0:00:43]} 60. Nh5+ {[%emt 0:00:10]} Kh7 {[%emt 0:00:38]} 61. Qe4 {[%emt 0:00:50]} Qxe4 {[%emt 0:02:37]} 62. Nf6+ {[%emt 0:00:01]} Kg6 {[%emt 0:00:03]} 63. Nxe4 {[%emt 0:00:03]} f6 {[%emt 0:01:21]} 64. Nc5 {[%emt 0:00:26]} f5 {[%emt 0:00:44]} 65. gxf5+ {[%emt 0:00:55]} Kxf5 {[%emt 0:00:01]} 66. Nxa6 {[%emt 0:00:05]} Kf6 {[%emt 0:00:34]} 67. Nb4 {[%emt 0:01:17]} Kf5 {[%emt 0:00:26]} 68. Kf3 {[%emt 0:00:06]} Ke5 {[%emt 0:00:29]} 69. Kg4 {[%emt 0:00:51]} Kf6 {[%emt 0:00:34]} 70. Nc2 Nb3 {[%emt 0:00:01]} 71. Ne3 {[%emt 0:01:13]} Na5 {[%emt 0:00:19]} 72. Kh5 {[%emt 0:00:17]} Kg7 {[%emt 0:00:30]} 73. Kxg5 Kh7 74. h4 {[%emt 0:00:29]} Kg7 {[%emt 0:00:16]} 75. h5 {[%emt 0:00:09]} Kh7 {[%emt 0:00:04]} 76. h6 {[%emt 0:00:09]} Kh8 {[%emt 0:00:16]} 77. Kg6 {[%emt 0:00:09]} Kg8 {[%emt 0:00:02]} 78. Ng4 {[%emt 0:00:33]} Kh8 {[%emt 0:00:10]} 79. Ne5 {[%emt 0:00:06]} Kg8 {[%emt 0:00:06]} 80. h7+ {[%emt 0:00:06]} Kh8 {[%emt 0:00:06]} 81. Nf3 1-0

[Event "22nd ETCC Women 2019"]
[Site "Batumi"]
[Date "2019.10.30"]
[Round "6.29"]
[White "Bulmaga, Irina"]
[Black "Vega Gutierrez, Sabrina"]
[Result "0-1"]
[ECO "B40"]
[WhiteElo "2442"]
[BlackElo "2395"]
[Annotator "NA"]
[PlyCount "138"]
[EventDate "2019.10.24"]
[EventType "team-tourn"]
[EventCountry "GEO"]
[SourceTitle "playchess.com"]
[Source "ChessBase"]
[SourceQuality "1"]
[WhiteTeam "Romania"]
[BlackTeam "Spain"]
[WhiteTeamCountry "ROU"]
[BlackTeamCountry "ESP"]
[TimeControl "40/5400+30:1800+30"]

1. e4 {[%emt 0:00:00]} c5 {[%emt 0:00:00]} 2. Nf3 {[%emt 0:00:00]} e6 {[%emt 0:00:00]} 3. d4 {[%emt 0:00:11]} cxd4 {[%emt 0:00:00]} 4. Nxd4 {[%emt 0:00:05]} Nf6 {[%emt 0:00:33]} 5. Nc3 {[%emt 0:00:10]} Nc6 {[%emt 0:00:13]} 6. g3 {[%emt 0:00:21]} d6 {[%emt 0:01:43]} 7. Bg2 {[%emt 0:00:13]} Bd7 {[%emt 0:00:17]} 8. O-O {[%emt 0:00:21]} Be7 {[%emt 0:00:47]} 9. b3 {[%emt 0:01:16]} O-O {[%emt 0:07:57]} 10. Bb2 {[%emt 0:00:19]} a6 {[%emt 0:07:32]} 11. Nxc6 {[%emt 0:10:03]} Bxc6 {[%emt 0:00:28]} 12. a4 {[%emt 0:00:29]} Qc7 {[%emt 0:07:10]} 13. a5 {[%emt 0:04:56]} Rad8 {[%emt 0:10:23]} 14. Qd4 {[%emt 0:04:03]} Ne8 {[%emt 0:11:17]} 15. Qd3 {[%emt 0:20:31]} Bf6 {[%emt 0:08:52]} 16. Ra2 {[%emt 0:12:06]} d5 {[%emt 0:07:42]} 17. exd5 {[%emt 0:01:10]} exd5 {[%emt 0:00:12]} 18. Ba3 {[%emt 0:01:51]} d4 {[%emt 0:01:13]} 19. Ne2 {[%emt 0:12:53]} Bb5 {[%emt 0:01:21]} 20. Qd2 {[%emt 0:02:36]} Nd6 {[%emt 0:06:26]} 21. Re1 {[%emt 0:07:41]} Rfe8 {[%emt 0:01:37]} 22. Nf4 {[%emt 0:04:33]} Rxe1+ {[%emt 0:08:09]} 23. Qxe1 {[%emt 0:00:02]} Re8 {[%emt 0:03:49]} 24. Qb4 {[%emt 0:02:21]} Qc3 {[%emt 0:01:13]} 25. Qxc3 {[%emt 0:01:32]} dxc3 {[%emt 0:00:03]} 26. Ra1 {[%emt 0:01:37]} Nf5 {[%emt 0:05:33]} 27. Bb4 {[%emt 0:09:30]} Nd4 {[%emt 0:01:25]} 28. Bxc3 {[%emt 0:02:21]} Nxc2 {[%emt 0:07:24]} 29. Bxf6 {[%emt 0:00:32]} Nxa1 {[%emt 0:00:11]} 30. Bc3 {[%emt 0:00:16]} Bc6 {[%emt 0:00:56]} 31. Bxc6 {[%emt 0:00:20]} bxc6 {[%emt 0:00:03]} 32. b4 {[%emt 0:00:13]} Rd8 {[%emt 0:00:44]} 33. Kf1 {[%emt 0:00:24]} Nc2 {[%emt 0:00:29]} 34. Ke2 {[%emt 0:00:58]} Nd4+ {[%emt 0:00:39]} 35. Ke3 {[%emt 0:00:02]} Nf5+ {[%emt 0:00:23]} 36. Ke4 {[%emt 0:00:29]} Nd6+ {[%emt 0:00:07]} 37. Ke3 {[%emt 0:00:27]} f5 {[%emt 0:00:42]} 38. Nd3 {[%emt 0:00:34]} Nb5 {[%emt 0:00:45]} 39. Be5 {[%emt 0:00:18]} Na3 {[%emt 0:00:38]} 40. Bc3 {[%emt 0:00:00]} Nb5 {[%emt 0:00:00]} 41. Be5 {[%emt 0:02:26]} Na3 {[%emt 0:07:25]} 42. Bc3 {[%emt 0:02:37]} Nc4+ {[%emt 0:03:51]} 43. Ke2 {[%emt 0:00:28]} Nd6 {[%emt 0:01:05]} 44. Ke3 {[%emt 0:05:45]} Re8+ {[%emt 0:06:53]} 45. Be5 {[%emt 0:00:10]} Kf7 {[%emt 0:05:22]} 46. Kf4 {[%emt 0:03:56]} Rd8 {[%emt 0:01:54]} 47. Nc5 {[%emt 0:01:44]} g6 {[%emt 0:00:06]} 48. Nxa6 {[%emt 0:03:00]} Ke6 {[%emt 0:00:43]} 49. Nc5+ {[%emt 0:03:28]} Kd5 {[%emt 0:00:03]} 50. Bxd6 {[%emt 0:03:39]} Rxd6 {[%emt 0:00:03]} 51. a6 {[%emt 0:04:54]} Rd8 {[%emt 0:00:29]} 52. h4 {[%emt 0:05:01]} Kc4 {[%emt 0:03:12]} 53. h5 {[%emt 0:00:50]} Kxb4 {[%emt 0:01:02]} 54. Ne6 {[%emt 0:00:02]} Ra8 {[%emt 0:00:30]} 55. hxg6 {[%emt 0:01:07]} hxg6 {[%emt 0:00:03]} 56. Kg5 {[%emt 0:00:35]} Rxa6 {[%emt 0:01:00]} 57. Nc7 {[%emt 0:00:05]} Ra7 {[%emt 0:01:46]} 58. Ne6 {[%emt 0:00:02]} c5 {[%emt 0:01:54]} 59. Kxg6 {[%emt 0:00:02]} c4 {[%emt 0:01:06]} 60. Kxf5 {[%emt 0:01:06]} Rd7 {[%emt 0:00:55]} 61. Nf4 {[%emt 0:01:17]} c3 {[%emt 0:00:33]} 62. Ke6 {[%emt 0:00:20]} Rd2 {[%emt 0:00:13]} 63. Nd5+ {[%emt 0:00:41]} Rxd5 {[%emt 0:00:09]} 64. Kxd5 {[%emt 0:00:03]} c2 {[%emt 0:00:12]} 65. f4 {[%emt 0:00:04]} c1=Q {[%emt 0:00:08]} 66. f5 {[%emt 0:00:03]} Qc4+ {[%emt 0:01:36]} 67. Ke5 {[%emt 0:00:09]} Kc5 {[%emt 0:00:11]} 68. g4 {[%emt 0:00:19]} Qxg4 {[%emt 0:00:16]} 69. f6 {[%emt 0:00:04]} Qg8 {[%emt 0:00:11] Kd4+} 0-1

[Event "22nd ETCC Women 2019"]
[Site "Batumi"]
[Date "2019.10.30"]
[Round "6.30"]
[White "Garcia Martin, Marta"]
[Black "Peptan, Corina-Isabela"]
[Result "1/2-1/2"]
[ECO "C09"]
[WhiteElo "2305"]
[BlackElo "2371"]
[Annotator "NA"]
[PlyCount "133"]
[EventDate "2019.10.24"]
[EventType "team-tourn"]
[EventCountry "GEO"]
[SourceTitle "playchess.com"]
[Source "ChessBase"]
[SourceQuality "1"]
[WhiteTeam "Spain"]
[BlackTeam "Romania"]
[WhiteTeamCountry "ESP"]
[BlackTeamCountry "ROU"]
[TimeControl "40/5400+30:1800+30"]

1. e4 {[%emt 0:00:00]} e6 {[%emt 0:00:00]} 2. d4 {[%emt 0:00:00]} d5 {[%emt 0:00:00]} 3. Nd2 {[%emt 0:00:00]} c5 {[%emt 0:00:00]} 4. exd5 {[%emt 0:00:06]} exd5 {[%emt 0:00:00]} 5. Ngf3 {[%emt 0:00:18]} Nc6 {[%emt 0:00:00]} 6. Bb5 {[%emt 0:00:30]} cxd4 {[%emt 0:00:01]} 7. Qe2+ {[%emt 0:02:26]} Qe7 {[%emt 0:00:33]} 8. Nxd4 {[%emt 0:01:54]} Bd7 {[%emt 0:01:11]} 9. N2f3 {[%emt 0:05:23]} Qxe2+ {[%emt 0:00:41]} 10. Kxe2 {[%emt 0:01:10]} Bd6 {[%emt 0:05:54]} 11. Rd1 {[%emt 0:12:28]} Nge7 {[%emt 0:10:29]} 12. c4 {[%emt 0:25:11]} a6 {[%emt 0:00:41]} 13. Nxc6 {[%emt 0:00:52]} bxc6 {[%emt 0:01:13]} 14. Ba4 {[%emt 0:00:06]} Rb8 {[%emt 0:03:14]} 15. b3 {[%emt 0:05:15]} Rb7 {[%emt 0:11:58]} 16. Bb2 {[%emt 0:03:41]} f6 {[%emt 0:00:19]} 17. Kf1 {[%emt 0:03:11]} Kf7 {[%emt 0:00:51]} 18. Rac1 {[%emt 0:06:50]} Bf4 {[%emt 0:12:25]} 19. Rc3 {[%emt 0:00:41]} Bd6 {[%emt 0:12:51]} 20. cxd5 {[%emt 0:06:56]} cxd5 {[%emt 0:00:10]} 21. Bxd7 {[%emt 0:00:06]} Rxd7 {[%emt 0:00:04]} 22. Nd4 {[%emt 0:00:34]} Be5 {[%emt 0:02:46]} 23. Rc5 {[%emt 0:13:01]} Rb8 {[%emt 0:01:11]} 24. Ba3 {[%emt 0:03:57]} Rb6 {[%emt 0:00:35]} 25. Ra5 {[%emt 0:02:13]} Bd6 {[%emt 0:21:03]} 26. Bxd6 {[%emt 0:00:23]} Rdxd6 {[%emt 0:01:18]} 27. g3 {[%emt 0:02:27]} Rb7 {[%emt 0:05:44]} 28. Rc5 {[%emt 0:01:00]} Ke8 {[%emt 0:01:46]} 29. Ke2 {[%emt 0:00:38]} Kd7 {[%emt 0:00:05]} 30. Rdc1 {[%emt 0:00:26]} f5 {[%emt 0:00:48]} 31. Kd2 {[%emt 0:01:25]} g5 {[%emt 0:01:46]} 32. Nf3 {[%emt 0:00:34]} h6 {[%emt 0:02:54]} 33. h4 {[%emt 0:00:26]} gxh4 {[%emt 0:00:12]} 34. Nxh4 {[%emt 0:00:10]} Rf6 {[%emt 0:01:27]} 35. Ng2 {[%emt 0:00:46]} Rd6 {[%emt 0:02:35]} 36. Nf4 {[%emt 0:00:20]} Ra7 {[%emt 0:00:31]} 37. Ke3 {[%emt 0:02:23]} a5 {[%emt 0:00:33]} 38. Kd2 {[%emt 0:00:29]} a4 {[%emt 0:00:30]} 39. b4 {[%emt 0:00:13]} a3 {[%emt 0:00:02]} 40. b5 {[%emt 0:00:00]} Rb7 {[%emt 0:00:00]} 41. Kc3 {[%emt 0:14:22]} d4+ {[%emt 0:26:47]} 42. Kd3 {[%emt 0:04:31]} Rdb6 {[%emt 0:01:04]} 43. Kc4 {[%emt 0:03:02]} Nc8 {[%emt 0:01:34]} 44. Kxd4 {[%emt 0:09:37]} Nd6 {[%emt 0:00:04]} 45. Nd3 {[%emt 0:01:44]} Rxb5 {[%emt 0:00:33]} 46. R5c3 {[%emt 0:00:33]} Ra7 {[%emt 0:02:19]} 47. Nc5+ {[%emt 0:00:05]} Ke7 {[%emt 0:00:42]} 48. Re1+ {[%emt 0:00:16]} Kf7 {[%emt 0:00:05]} 49. Ree3 {[%emt 0:01:11]} Rba5 {[%emt 0:01:50]} 50. Kd3 {[%emt 0:00:36]} Rc7 {[%emt 0:00:28]} 51. Nb3 {[%emt 0:00:28]} Rd5+ {[%emt 0:00:27]} 52. Kc2 {[%emt 0:00:08]} Rxc3+ {[%emt 0:00:41]} 53. Kxc3 {[%emt 0:00:03]} Ne4+ {[%emt 0:00:28]} 54. Kc4 {[%emt 0:01:04]} Rd7 {[%emt 0:00:45]} 55. Kb4 {[%emt 0:00:29]} Nxf2 {[%emt 0:00:20]} 56. Rf3 {[%emt 0:00:21]} Nd3+ {[%emt 0:00:38]} 57. Kc3 {[%emt 0:00:13]} Ne5 {[%emt 0:00:41]} 58. Rxf5+ {[%emt 0:00:06]} Ke6 {[%emt 0:00:04]} 59. Rh5 {[%emt 0:00:12]} Rd3+ {[%emt 0:00:56]} 60. Kb4 {[%emt 0:00:36]} Rxg3 {[%emt 0:00:33]} 61. Rxh6+ {[%emt 0:00:36]} Kd5 {[%emt 0:00:13]} 62. Kxa3 {[%emt 0:01:19]} Rg2 {[%emt 0:00:08]} 63. Rh1 {[%emt 0:00:51]} Kc6 {[%emt 0:01:02]} 64. Rh5 {[%emt 0:00:34]} Kd5 {[%emt 0:00:33]} 65. Rh8 {[%emt 0:00:23]} Nc4+ {[%emt 0:00:27]} 66. Kb4 {[%emt 0:00:10]} Rxa2 {[%emt 0:00:13]} 67. Rh5+ {[%emt 0:00:18]} 1/2-1/2